bitfinex-derivatives/quotes_SOLF0:USTF0_20250228
["timestamp","ask_amount","ask_price","bid_price","bid_amount"]
[1740772871435,9.188e-05,146.28,146.26,6.88634384]
[1740772873442,9.188e-05,146.28,146.27,6.8379]
[1740772874649,9.188e-05,146.28,146.26,0.04814384]
[1740772875151,6.83779188,146.28,146.26,0.04814384]
[1740772876249,6.8379,146.27,146.26,0.04814384]
[1740772876443,12.68,146.27,146.15,13.6866]
[1740772876745,1.7358,146.26,146.15,26.3666]
[1740772877349,6.8396,146.24,146.15,12.68]
[1740772877550,0.04810303,146.21,146.15,12.68]
[1740772878950,0.04810303,146.21,146.2,6.8411]
[1740772879153,3.03e-06,146.21,146.2,6.8411]
[1740772880656,3.03e-06,146.21,146.19,6.8894]
[1740772881356,3.03e-06,146.21,146.2,6.8411]
[1740772883357,3.03e-06,146.21,146.2,19.5211]
[1740772883552,3.03e-06,146.21,146.2,25.0538]
[1740772887157,3.03e-06,146.21,146.2,21.3847]
[1740772887556,3.03e-06,146.21,146.2,19.5211]
[1740772887758,3.03e-06,146.21,146.2,6.8411]
[1740772899270,3.03e-06,146.21,146.19,0.0481]
[1740772899966,3.03e-06,146.21,146.2,6.8411]
[1740772915585,3.03e-06,146.21,146.19,6.8894]
[1740772918185,3.03e-06,146.21,146.2,6.8411]
[1740772944109,3.03e-06,146.21,146.2,11.51749287]
[1740772944411,3.03e-06,146.21,146.2,10.2611]
[1740772945706,3.03e-06,146.21,146.2,11.5174217]
[1740772947512,3.03e-06,146.21,146.2,51.17412103]
[1740772947713,3.03e-06,146.21,146.2,49.91779933]
[1740772948711,3.03e-06,146.21,146.2,62.59779933]
[1740772950313,3.03e-06,146.21,146.2,19.5211]
[1740772957930,3.03e-06,146.21,146.2,22.9411]
[1740772958427,3.03e-06,146.21,146.2,24.19747103]
[1740772962025,3.03e-06,146.21,146.2,216.19747103]
[1740772962226,3.03e-06,146.21,146.2,259.282534]
[1740772962426,3.03e-06,146.21,146.2,275.19099261]
[1740772963130,3.03e-06,146.21,146.2,290.55560994]
[1740772964629,3.03e-06,146.21,146.2,289.29923891]
[1740772965235,3.03e-06,146.21,146.2,365.34378766]
[1740772966834,3.03e-06,146.21,146.2,366.60001197]
[1740772967831,3.03e-06,146.21,146.2,349.43532905]
[1740772968027,3.03e-06,146.21,146.2,334.07071172]
[1740772969829,3.03e-06,146.21,146.2,349.88955925]
[1740772970032,3.5805,146.37,146.36,6.8336]
[1740772974136,0.04858963,146.38,146.37,6.8332]
[1740772974437,8.963e-05,146.38,146.37,6.8332]
[1740772975128,8.963e-05,146.38,146.37,19.4932]
[1740772980532,8.963e-05,146.38,146.37,6.8332]
[1740772980738,8.963e-05,146.38,146.37,3.8164]
[1740772982134,28.54355287,146.55,146.39,13.6644]
[1740772982337,28.54355287,146.55,146.4,12.66]
[1740772982535,28.54355287,146.55,146.4,204.66]
[1740772982742,28.54355287,146.55,146.54,6.8253]
[1740772982931,2.06275287,146.55,146.54,6.8253]
[1740772983134,17.27629387,146.56,146.52,12.66]
[1740772983336,103.86400537,146.57,146.56,6.8243]
[1740772983638,39.05140537,146.57,146.56,6.8243]
[1740772984437,28.38372083,146.58,146.56,6.8243]
[1740772984634,28.38372083,146.58,146.57,19.4839]
[1740772985143,28.38372083,146.58,146.57,12.66]
[1740772986641,17.48482083,146.58,146.57,19.4839]
[1740772986845,12.64,146.74,146.57,12.66]
[1740772987044,232.47754645,146.75,146.57,12.66]
[1740772987545,1.018,146.74,146.58,1.806]
[1740772987934,0.04864057,146.67,146.65,0.04537037]
[1740772988141,7.8341,146.74,146.63,12.64]
[1740772988339,1.018,146.74,146.63,12.64]
[1740772988538,0.04872888,146.67,146.65,0.04819814]
[1740772988741,0.0439742,146.7,146.66,6.8196]
[1740772988943,1.018,146.74,146.66,6.8196]
[1740772989143,0.04710443,146.69,146.66,6.8196]
[1740772989746,0.04710443,146.69,146.66,6.86367425]
[1740772990447,0.04710443,146.69,146.66,0.04407425]
[1740772991059,4.43e-06,146.69,146.66,0.04407425]
[1740772991647,4.43e-06,146.69,146.67,6.8192]
[1740772991844,12.64,146.79,146.68,41.08282594]
[1740772992147,6.8159,146.75,146.68,41.08282594]
[1740772992647,12.64,146.79,146.68,41.08282594]
[1740772992846,6.8142,146.78,146.68,41.08282594]
[1740772993048,0.04367691,146.75,146.72,0.04648551]
[1740772993248,231.1,146.82,146.68,41.08282594]
[1740772993559,0.04499488,146.75,146.73,6.8163]
[1740772993849,6.8135,146.8,146.73,6.8163]
[1740772994045,0.04297139,146.75,146.74,6.816]
[1740772994346,0.0469738,146.76,146.73,49.37487491]
[1740772994547,0.0469738,146.76,146.73,49.41920725]
[1740772994750,0.0469738,146.76,146.75,6.8151]
[1740772994949,0.0469738,146.76,146.73,49.41920725]
[1740772996385,0.0469738,146.76,146.74,131.37527204]
[1740772996582,3.4469738,146.76,146.74,131.37527204]
[1740772996772,3.37670939,146.76,146.74,131.37527204]
[1740772996969,6.8155,146.75,146.74,131.37527204]
[1740772997480,10.2155,146.75,146.74,131.37527204]
[1740772998070,6.816,146.74,146.73,0.04433234]
[1740772998461,3.4,146.74,146.73,0.04433234]
[1740772998955,10.216,146.74,146.73,0.04433234]
[1740772999658,6.819,146.68,146.66,9.15918418]
[1740772999845,12.62,146.75,146.66,9.15918418]
[1740773000049,12.62,146.75,146.66,15.97878418]
[1740773000352,6.8179,146.7,146.66,9.15918418]
[1740773000553,12.62,146.74,146.66,9.15918418]
[1740773001071,6.8178,146.7,146.69,0.04696937]
[1740773001458,10.2178,146.7,146.69,0.04696937]
[1740773004253,6.8178,146.7,146.69,0.04696937]
[1740773004759,0.04465891,146.71,146.69,0.04696937]
[1740773005763,6.8178,146.7,146.69,0.04696937]
[1740773006261,10.2178,146.7,146.69,6.937e-05]
[1740773006659,3.4,146.7,146.69,6.937e-05]
[1740773006855,3.4,146.7,146.66,60.78935593]
[1740773007056,230.82,146.69,146.64,180.29922297]
[1740773007461,6.8201,146.65,146.64,169.83572297]
[1740773008555,6.8201,146.65,146.64,114.06682312]
[1740773008757,6.8206,146.64,146.63,0.04453172]
[1740773009562,0.0513412,146.66,146.63,0.04453172]
[1740773009763,6.8205,146.65,146.63,0.04453172]
[1740773011163,6.8711412,146.66,146.63,0.04453172]
[1740773011360,0.0513412,146.66,146.63,0.04453172]
[1740773011755,0.0513412,146.66,146.64,6.8205]
[1740773012157,0.0513412,146.66,146.63,0.04453172]
[1740773012353,0.0513412,146.66,146.63,6.86513172]
[1740773013065,0.0513412,146.66,146.64,6.8205]
[1740773013958,0.0513412,146.66,146.63,0.04453172]
[1740773014265,0.0513412,146.66,146.65,6.8201]
[1740773015968,0.0513412,146.66,146.63,0.04453172]
[1740773016161,0.0513412,146.66,146.64,6.8203]
[1740773016362,0.0513412,146.66,146.63,0.04453172]
[1740773016967,0.0513412,146.66,146.65,6.8201]
[1740773018968,12.62,146.74,146.63,0.04453172]
[1740773019167,12.62,146.74,146.7,6.8177]
[1740773019763,6.816,146.74,146.7,6.8177]
[1740773020165,218.26,146.76,146.71,6.8171]
[1740773020364,0.04956695,146.73,146.71,6.86385021]
[1740773020872,0.04956695,146.73,146.71,0.04675021]
[1740773022360,0.04956695,146.73,146.72,6.8169]
[1740773023265,0.04956695,146.73,146.71,6.86375021]
[1740773023660,6.8169,146.72,146.71,0.04675021]
[1740773024061,190.0,146.88,146.71,0.04675021]
[1740773024265,12.62,146.87,146.76,6.8147]
[1740773024671,6.8122,146.83,146.76,6.8147]
[1740773025472,0.0463879,146.81,146.78,0.0459274]
[1740773026465,6.8136,146.79,146.78,0.0459274]
[1740773026870,3.4,146.79,146.68,12.62]
[1740773027174,12.62,146.82,146.68,22.87049228]
[1740773028078,0.04678022,146.76,146.74,0.0457805]
[1740773028272,12.62,146.77,146.74,0.0457805]
[1740773028478,0.04878532,146.76,146.7,6.8175]
[1740773028670,0.04878532,146.76,146.74,0.05084813]
[1740773028870,6.86398532,146.76,146.7,6.8175]
[1740773029072,0.04878532,146.76,146.74,0.04960925]
[1740773029278,0.04878532,146.76,146.71,6.817]
[1740773029574,0.04878532,146.76,146.74,0.04526609]
[1740773029780,6.86398532,146.76,146.71,6.8173]
[1740773029970,6.86398532,146.76,146.74,0.04656381]
[1740773030678,0.04878532,146.76,146.74,0.04656381]
[1740773031782,6.86398532,146.76,146.74,0.04656381]
[1740773032074,0.04878532,146.76,146.74,0.04656381]
[1740773032469,6.8155,146.75,146.74,0.04656381]
[1740773033178,0.04878532,146.76,146.74,0.04656381]
[1740773033575,0.04878532,146.76,146.75,6.8155]
[1740773034684,0.04878532,146.76,146.74,6.86226381]
[1740773035392,0.04878532,146.76,146.74,0.04656381]
[1740773036595,6.8155,146.75,146.74,0.04656381]
[1740773039390,6.86388532,146.76,146.74,0.04656381]
[1740773039594,0.04878532,146.76,146.75,6.8155]
[1740773043496,0.04878532,146.76,146.74,0.04656381]
[1740773043697,6.86378532,146.76,146.74,0.04656381]
[1740773043895,0.04878532,146.76,146.74,0.04656381]
[1740773045702,6.8155,146.75,146.74,0.04656381]
[1740773049709,6.86388532,146.76,146.74,0.04656381]
[1740773049905,0.04878532,146.76,146.74,0.04656381]
[1740773050512,6.8155,146.75,146.74,0.04656381]
[1740773055110,0.04878532,146.76,146.74,0.04656381]
[1740773055610,12.62,146.82,146.74,0.04656381]
[1740773056807,0.0437729,146.79,146.74,0.04656381]
[1740773057410,6.8155,146.75,146.74,0.04656381]
[1740773060922,6.8155,146.75,146.74,0.00366381]
[1740773061316,0.04313926,146.76,146.71,21.89]
[1740773061922,6.8169,146.72,146.71,21.89]
[1740773062920,0.05057027,146.73,146.71,14.1]
[1740773064422,0.05057027,146.73,146.71,20.9173]
[1740773068124,6.8129,146.81,146.71,15.9064]
[1740773068629,6.8129,146.81,146.76,6.8149]
[1740773068821,224.9521,146.83,146.71,15.9064]
[1740773069021,12.62,146.82,146.71,15.9064]
[1740773069321,0.04559883,146.78,146.76,6.8147]
[1740773069925,0.04559883,146.78,146.75,0.05084451]
[1740773070119,0.04559883,146.78,146.77,6.8146]
[1740773072722,224.9518,146.83,146.78,6.8138]
[1740773073322,6.8123,146.82,146.77,6.8144]
[1740773074026,6.86067393,146.81,146.78,0.04913774]
[1740773074626,0.04797393,146.81,146.78,0.04913774]
[1740773075221,6.86077393,146.81,146.78,0.04913774]
[1740773075827,0.04797393,146.81,146.78,6.86313774]
[1740773076025,0.04797393,146.81,146.78,0.04913774]
[1740773077226,0.04797393,146.81,146.79,6.8133]
[1740773077724,0.04797393,146.81,146.78,8.71363774]
[1740773078226,6.86097393,146.81,146.78,1.89973774]
[1740773078727,0.04797393,146.81,146.78,8.71363774]
[1740773079327,0.04797393,146.81,146.8,6.8132]
[1740773079631,0.04797393,146.81,146.78,1.89973774]
[1740773080526,0.04797393,146.81,146.79,6.8133]
[1740773081229,0.04797393,146.81,146.78,8.71363774]
[1740773082025,0.04797393,146.81,146.79,6.8135]
[1740773082626,0.04797393,146.81,146.78,1.89973774]
[1740773083323,6.8136,146.79,146.78,1.89973774]
[1740773083518,0.04797393,146.81,146.78,1.89973774]
[1740773083924,6.86087393,146.81,146.78,8.71373774]
[1740773084121,6.86087393,146.81,146.78,1.89973774]
[1740773084122,0.04797393,146.81,146.78,1.89973774]
[1740773084330,0.04797393,146.81,146.78,12.15023002]
[1740773084629,0.04797393,146.81,146.79,6.8136]
[1740773084927,0.04797393,146.81,146.78,12.15023002]
[1740773085123,0.04797393,146.81,146.79,6.8134]
[1740773085525,218.14,146.83,146.78,1.89973774]
[1740773085724,6.8115,146.84,146.78,1.89973774]
[1740773085924,12.6,146.86,146.78,1.8506]
[1740773086330,6.8121,146.83,146.79,6.8132]
[1740773086524,6.8121,146.83,146.8,0.05213132]
[1740773086829,0.04694598,146.82,146.8,0.05213132]
[1740773088028,6.8127,146.81,146.8,0.05213132]
[1740773090233,12.6,146.81,146.76,12.03]
[1740773090535,218.06,146.8,146.68,3.7439]
[1740773090834,190.0,146.79,146.68,13.99439228]
[1740773091032,190.0,146.79,146.68,12.11029228]
[1740773091430,0.04974164,146.75,146.72,0.04423668]
[1740773091629,6.8164,146.73,146.72,0.04423668]
[1740773091826,12.6,146.74,146.65,1.9103]
[1740773092026,12.6,146.74,146.65,12.16079228]
[1740773092223,12.6,146.74,146.66,11.39]
[1740773092428,12.6,146.74,146.66,21.64049228]
[1740773092927,0.05141557,146.71,146.69,0.04775086]
[1740773093333,6.8178,146.7,146.69,0.04775086]
[1740773094830,6.86891557,146.71,146.69,0.04775086]
[1740773095232,0.05141557,146.71,146.69,0.04775086]
[1740773096332,0.05141557,146.71,146.69,6.86595086]
[1740773100527,0.05141557,146.71,146.7,6.8178]
[1740773101427,218.06,146.8,146.72,6.8165]
[1740773101632,12.6,146.78,146.72,6.8165]
[1740773102736,6.86364136,146.76,146.74,0.04985541]
[1740773104737,6.8155,146.75,146.74,0.04985541]
[1740773105137,6.8155,146.75,146.74,5.541e-05]
[1740773105336,0.04844136,146.76,146.66,11.39]
[1740773105538,12.6,146.78,146.66,11.39]
[1740773105738,1.1789609,146.77,146.66,11.39]
[1740773105935,14.8081609,146.77,146.66,11.39]
[1740773106135,13.6292,146.77,146.66,21.64049228]
[1740773106335,0.04441434,146.73,146.7,0.05043025]
[1740773106535,12.6,146.72,146.7,0.05043025]
[1740773106932,6.8173,146.71,146.7,3.025e-05]
[1740773108735,6.8192,146.67,146.66,3.025e-05]
[1740773108939,19.4192,146.67,146.66,3.025e-05]
[1740773110831,6.8197,146.66,146.65,0.04860762]
[1740773111035,12.6,146.67,146.59,1.8778]
[1740773111236,12.6,146.67,146.51,1.737]
[1740773111440,6.8219,146.62,146.51,5.4069]
[1740773111641,12.62,146.61,146.51,5.4069]
[1740773111837,12.62,146.61,146.55,6.8248]
[1740773112136,12.62,146.61,146.51,5.4069]
[1740773112137,19.442,146.61,146.59,0.04653985]
[1740773112940,12.62,146.61,146.59,0.04653985]
[1740773114137,19.442,146.61,146.59,0.04653985]
[1740773114338,12.62,146.61,146.59,0.04653985]
[1740773115142,19.442,146.61,146.59,0.04653985]
[1740773115440,12.62,146.61,146.59,0.04653985]
[1740773116937,19.442,146.61,146.59,0.04653985]
[1740773117138,12.62,146.61,146.59,0.04653985]
[1740773117442,12.62,146.61,146.59,6.86943985]
[1740773117645,0.04923141,146.62,146.59,0.04653985]
[1740773118542,6.822,146.61,146.59,0.04653985]
[1740773118740,0.04923141,146.62,146.59,0.04653985]
[1740773120049,6.8225,146.6,146.59,0.04653985]
[1740773120545,6.8249,146.55,146.51,22.4669]
[1740773120741,12.62,146.57,146.51,32.71739228]
[1740773121140,12.62,146.57,146.51,44.96739228]
[1740773121540,12.62,146.61,146.51,34.7169]
[1740773121739,0.05101757,146.55,146.53,0.04556959]
[1740773121938,12.62,146.61,146.53,0.04556959]
[1740773122243,6.8231,146.59,146.54,6.8252]
[1740773122442,12.62,146.61,146.54,6.8252]
[1740773122744,12.62,146.61,146.51,47.3369]
[1740773123147,0.04381985,146.57,146.55,0.04601214]
[1740773124145,12.62,146.61,146.55,0.04601214]
[1740773124537,12.62,146.61,146.58,6.8231]
[1740773124847,12.62,146.61,146.51,47.3369]
[1740773125348,0.04998303,146.57,146.55,0.04362854]
[1740773125644,12.62,146.61,146.59,6.8229]
[1740773126045,0.87383846,146.69,146.53,14.43]
[1740773126249,6.8207,146.64,146.6,6.8221]
[1740773126441,12.62,146.68,146.53,14.43]
[1740773126638,0.04922667,146.63,146.62,6.8215]
[1740773126836,19.4393,146.67,146.62,1.8392]
[1740773127042,12.62,146.67,146.62,1.8392]
[1740773128046,6.8205,146.65,146.63,0.0497673]
[1740773128443,0.04665856,146.66,146.63,0.0497673]
[1740773128743,6.86665856,146.66,146.63,0.0497673]
[1740773129147,0.04665856,146.66,146.63,0.0497673]
[1740773129348,6.8206,146.64,146.63,0.0497673]
[1740773132244,0.04665856,146.66,146.63,0.0497673]
[1740773132446,6.8203,146.65,146.63,0.0497673]
[1740773132747,0.04665856,146.66,146.63,0.0497673]
[1740773133448,0.04665856,146.66,146.63,6.8705673]
[1740773133850,0.04665856,146.66,146.63,0.0497673]
[1740773134045,0.04665856,146.66,146.64,1.8645]
[1740773134250,0.04665856,146.66,146.64,10.5337]
[1740773135548,0.04665856,146.66,146.64,3.7135]
[1740773136551,0.04665856,146.66,146.64,13.96399228]
[1740773138057,0.04665856,146.66,146.64,10.25049228]
[1740773138248,6.8206,146.64,146.63,0.0497673]
[1740773141349,6.8206,146.64,146.63,6.73e-05]
[1740773143255,0.04665856,146.66,146.6,0.9916673]
[1740773143453,6.822,146.61,146.6,6.73e-05]
[1740773143651,19.442,146.61,146.6,6.73e-05]
[1740773148258,12.62,146.61,146.6,6.73e-05]
[1740773149160,0.04396744,146.62,146.6,6.73e-05]
[1740773149457,6.822,146.61,146.6,6.73e-05]
[1740773150053,19.48566744,146.62,146.6,6.73e-05]
[1740773150252,0.04396744,146.62,146.6,6.73e-05]
[1740773150450,0.04396744,146.62,146.59,0.04635356]
[1740773151667,0.04396744,146.62,146.59,10.29684584]
[1740773152464,0.04396744,146.62,146.59,0.04635356]
[1740773152656,0.04396744,146.62,146.59,6.86915356]
[1740773152861,0.04396744,146.62,146.59,0.04635356]
[1740773153862,0.04396744,146.62,146.59,10.29684584]
[1740773154063,6.822,146.61,146.59,10.29684584]
[1740773154263,0.04396744,146.62,146.59,10.29684584]
[1740773154459,6.86576744,146.62,146.59,10.29684584]
[1740773154660,0.04396744,146.62,146.59,10.29684584]
[1740773155364,6.8223,146.61,146.59,10.29684584]
[1740773155861,6.8225,146.6,146.59,0.04635356]
[1740773157068,6.8225,146.6,146.59,5.356e-05]
[1740773163376,6.8239,146.57,146.56,5.356e-05]
[1740773163577,19.4439,146.57,146.56,5.356e-05]
[1740773164974,12.62,146.57,146.56,5.356e-05]
[1740773165274,12.66998566,146.58,146.56,5.356e-05]
[1740773166377,19.49338566,146.58,146.55,0.04538479]
[1740773166882,12.66998566,146.58,146.55,0.04538479]
[1740773167479,12.66998566,146.58,146.55,6.87018479]
[1740773167778,12.66998566,146.58,146.56,3.5537]
[1740773170283,12.66998566,146.58,146.56,13.80419228]
[1740773170783,6.8239,146.57,146.56,13.80419228]
[1740773170972,12.66998566,146.58,146.56,13.80419228]
[1740773171582,19.49358566,146.58,146.56,13.80419228]
[1740773172083,6.8239,146.57,146.56,13.80419228]
[1740773173484,19.49368566,146.58,146.56,13.80419228]
[1740773174583,12.66998566,146.58,146.56,13.80419228]
[1740773178282,12.66998566,146.58,146.56,12.03209228]
[1740773178485,12.66998566,146.58,146.55,0.04538479]
[1740773178889,6.8243,146.56,146.55,0.04538479]
[1740773184883,12.66998566,146.58,146.55,0.04538479]
[1740773185685,19.49368566,146.58,146.55,0.04538479]
[1740773186289,12.66998566,146.58,146.55,0.04538479]
[1740773186595,0.04998566,146.58,146.55,0.04538479]
[1740773186794,12.62,146.6,146.55,0.04538479]
[1740773187788,12.62,146.62,146.56,6.8241]
[1740773187984,0.04985859,146.59,146.57,1.8945]
[1740773188189,231.0,146.63,146.58,0.04786356]
[1740773188393,231.0,146.63,146.59,6.8229]
[1740773189295,0.04545202,146.62,146.59,6.8229]
[1740773190895,0.04545202,146.62,146.59,17.07339228]
[1740773191395,0.04545202,146.62,146.59,10.25049228]
[1740773191797,0.04545202,146.62,146.58,0.04786356]
[1740773192097,0.04545202,146.62,146.58,10.29835584]
[1740773192999,0.04545202,146.62,146.58,0.04786356]
[1740773193397,0.04545202,146.62,146.58,1.79216356]
[1740773193697,0.04545202,146.62,146.58,8.61536356]
[1740773194898,0.04545202,146.62,146.58,1.79216356]
[1740773195700,6.86725202,146.62,146.58,12.04265584]
[1740773196194,6.8229,146.59,146.58,12.04265584]
[1740773196395,6.8229,146.59,146.58,10.29835584]
[1740773196998,6.8229,146.59,146.58,0.04786356]
[1740773197499,6.8234,146.58,146.57,6.356e-05]
[1740773197694,12.6,146.58,146.56,6.356e-05]
[1740773198400,6.8239,146.57,146.56,6.356e-05]
[1740773210309,12.6,146.62,146.56,6.356e-05]
[1740773210508,12.6,146.62,146.56,6.82426356]
[1740773210699,12.6,146.62,146.57,1.9104]
[1740773211105,12.6,146.62,146.57,12.16089228]
[1740773211305,6.8228,146.6,146.57,12.16089228]
[1740773211507,6.8228,146.6,146.58,0.04962694]
[1740773211806,6.8228,146.6,146.58,10.30011922]
[1740773212708,6.8229,146.59,146.58,10.30011922]
[1740773213108,6.8229,146.59,146.58,0.04962694]
[1740773215012,6.8229,146.59,146.58,2.694e-05]
[1740773215805,8.00329926,146.59,146.58,2.694e-05]
[1740773216911,19.91652042,146.59,146.58,2.694e-05]
[1740773217112,20.16232042,146.59,146.58,2.694e-05]
[1740773218213,23.58232042,146.59,146.58,2.694e-05]
[1740773218712,23.58255992,146.59,146.58,2.694e-05]
[1740773218913,38.36034574,146.59,146.58,2.694e-05]
[1740773219412,38.36035043,146.59,146.58,2.694e-05]
[1740773220206,6.8248,146.55,146.54,2.694e-05]
[1740773220412,20.60540391,146.55,146.54,2.694e-05]
[1740773221207,6.8282,146.48,146.45,1.864]
[1740773221412,12.6,146.47,146.45,12.11449228]
[1740773222610,12.6459531,146.47,146.45,12.16663035]
[1740773222909,12.6,146.51,146.45,1.91613807]
[1740773223114,12.6,146.51,146.46,6.8288]
[1740773223607,19.4267,146.51,146.45,8.74523807]
[1740773223813,19.4267,146.51,146.45,18.99573035]
[1740773224214,0.05203581,146.49,146.45,12.16663035]
[1740773224416,0.05203581,146.49,146.45,1.91613807]
[1740773224912,205.36190772,146.52,146.45,1.91613807]
[1740773225208,12.6,146.56,146.45,1.91613807]
[1740773225415,12.6,146.56,146.52,6.8261]
[1740773226114,0.04617253,146.55,146.53,0.05074691]
[1740773229408,6.8253,146.54,146.53,0.05074691]
[1740773230716,6.87117253,146.55,146.53,0.05074691]
[1740773231317,6.8253,146.54,146.53,0.05074691]
[1740773231922,6.8253,146.54,146.53,4.691e-05]
[1740773232519,0.04617253,146.55,146.53,4.691e-05]
[1740773233214,6.87117253,146.55,146.53,4.691e-05]
[1740773233414,0.04617253,146.55,146.53,4.691e-05]
[1740773234416,6.87117253,146.55,146.53,4.691e-05]
[1740773234617,0.04617253,146.55,146.53,4.691e-05]
[1740773235621,6.8236,146.58,146.53,4.691e-05]
[1740773235819,6.8236,146.58,146.53,6.82554691]
[1740773236021,231.12,146.59,146.54,3.6694]
[1740773236220,231.12,146.59,146.54,1.777]
[1740773236518,231.12,146.59,146.53,4.691e-05]
[1740773236720,6.8253,146.54,146.53,4.691e-05]
[1740773237114,0.04900756,146.55,146.53,4.691e-05]
[1740773238221,19.4253,146.54,146.53,4.691e-05]
[1740773239726,12.6,146.54,146.53,4.691e-05]
[1740773242525,19.4253,146.54,146.53,4.691e-05]
[1740773242723,12.6,146.54,146.53,4.691e-05]
[1740773244029,19.4253,146.54,146.53,4.691e-05]
[1740773244227,12.6,146.54,146.53,4.691e-05]
[1740773245427,0.04900756,146.55,146.53,4.691e-05]
[1740773245929,6.8253,146.54,146.53,4.691e-05]
[1740773247129,6.87400756,146.55,146.53,4.691e-05]
[1740773247530,0.04900756,146.55,146.53,4.691e-05]
[1740773247835,218.52,146.59,146.53,4.691e-05]
[1740773248021,218.52,146.59,146.55,6.8244]
[1740773248225,225.3433,146.59,146.56,3.7245]
[1740773248532,218.52,146.59,146.56,3.7245]
[1740773248731,6.8234,146.58,146.56,3.7245]
[1740773248932,6.8234,146.58,146.56,3.76928754]
[1740773249332,6.8239,146.57,146.56,0.04478754]
[1740773254237,6.8262,146.52,146.51,1.8972]
[1740773254538,6.8262,146.52,146.46,1.8164]
[1740773254539,12.6,146.54,146.47,1.8904]
[1740773254736,6.8271,146.51,146.47,1.8904]
[1740773255137,12.6,146.54,146.47,1.8904]
[1740773255437,0.04448983,146.52,146.49,0.04894935]
[1740773256532,6.8271,146.5,146.49,0.04894935]
[1740773258241,0.04448983,146.52,146.49,0.04894935]
[1740773259032,0.04448983,146.52,146.49,6.87654935]
[1740773260342,0.04448983,146.52,146.5,6.8271]
[1740773260539,0.04448983,146.52,146.5,8.7111]
[1740773261338,0.04448983,146.52,146.49,0.04894935]
[1740773261742,6.8268,146.51,146.49,0.04894935]
[1740773262540,6.87098983,146.52,146.49,0.04894935]
[1740773262939,0.04448983,146.52,146.49,0.04894935]
[1740773264143,6.8269,146.51,146.49,0.04894935]
[1740773264342,0.04448983,146.52,146.49,0.04894935]
[1740773264734,6.8271,146.5,146.49,0.04894935]
[1740773266843,0.04448983,146.52,146.49,0.04894935]
[1740773267642,6.87098983,146.52,146.49,0.04894935]
[1740773267946,0.04448983,146.52,146.49,0.04894935]
[1740773268142,6.87088983,146.52,146.49,0.04894935]
[1740773271449,0.04448983,146.52,146.49,0.04894935]
[1740773272547,6.87078983,146.52,146.49,0.04894935]
[1740773272944,0.04448983,146.52,146.49,0.04894935]
[1740773273148,6.8271,146.5,146.49,0.04894935]
[1740773276348,6.8271,146.5,146.49,4.935e-05]
[1740773281549,8.00822868,146.5,146.49,4.935e-05]
[1740773281947,6.8271,146.5,146.49,4.935e-05]
[1740773282551,8.00821199,146.5,146.49,4.935e-05]
[1740773282750,6.8271,146.5,146.49,4.935e-05]
[1740773283153,19.4271,146.5,146.49,4.935e-05]
[1740773283349,12.6,146.5,146.49,4.935e-05]
[1740773284050,12.64448983,146.52,146.49,4.935e-05]
[1740773284250,0.04448983,146.52,146.49,4.935e-05]
[1740773284452,0.04448983,146.52,146.49,6.82734935]
[1740773284748,0.04448983,146.52,146.49,4.935e-05]
[1740773285757,44.22314013,146.55,146.49,4.935e-05]
[1740773286352,44.22314013,146.55,146.49,6.82744935]
[1740773286554,12.6,146.57,146.49,4.935e-05]
[1740773287155,0.04878068,146.54,146.49,4.935e-05]
[1740773287553,6.826,146.53,146.49,4.935e-05]
[1740773287755,0.04878068,146.54,146.49,4.935e-05]
[1740773288351,6.8271,146.5,146.49,4.935e-05]
[1740773290559,0.05061574,146.51,146.49,4.935e-05]
[1740773293053,6.87741574,146.51,146.49,4.935e-05]
[1740773293253,0.05061574,146.51,146.49,4.935e-05]
[1740773294259,6.8254,146.54,146.5,6.8271]
[1740773295060,6.8254,146.54,146.5,8.7437]
[1740773295560,0.04440261,146.53,146.5,1.9166]
[1740773295860,6.8262,146.52,146.5,1.9166]
[1740773296063,0.04440261,146.53,146.5,1.9166]
[1740773296462,6.87050261,146.53,146.5,1.9166]
[1740773296665,6.87050261,146.53,146.49,4.935e-05]
[1740773297063,0.04440261,146.53,146.49,4.935e-05]
[1740773300567,0.04440261,146.53,146.49,6.82734935]
[1740773300871,0.04440261,146.53,146.49,4.935e-05]
[1740773302168,0.04440261,146.53,146.49,6.82734935]
[1740773302468,0.04440261,146.53,146.5,1.8053]
[1740773304559,6.87010261,146.53,146.5,1.8053]
[1740773305368,6.8263,146.52,146.5,1.8053]
[1740773305769,6.8263,146.52,146.49,4.935e-05]
[1740773305966,6.87030261,146.53,146.49,4.935e-05]
[1740773307665,0.04440261,146.53,146.49,4.935e-05]